bitfinex-derivatives/quotes_BTCF0:USTF0_20251209
["timestamp","ask_amount","ask_price","bid_price","bid_amount"]
[1765323738148,0.0688039,92982.0,92981.0,0.05734126]
[1765323738848,0.05805,92982.0,92981.0,0.05734126]
[1765323739051,0.05805,92982.0,92981.0,0.06034126]
[1765323740156,0.02942,92982.0,92981.0,0.06034126]
[1765323740549,0.0107536,92984.0,92983.0,0.05718]
[1765323740852,0.0107536,92984.0,92981.0,0.00316126]
[1765323740853,0.0688022,92997.0,92996.0,0.07514]
[1765323742356,0.0698022,92997.0,92996.0,0.07514]
[1765323743657,0.0708022,92997.0,92996.0,0.07514]
[1765323744750,0.002,92997.0,92996.0,0.07514]
[1765323754556,0.002,92997.0,92996.0,0.13301229]
[1765323755676,7.7e-07,93000.0,92999.0,0.05657]
[1765323755860,0.0107515,93003.0,93002.0,0.05657]
[1765323756167,0.0107515,93003.0,93002.0,0.0673215]
[1765323757461,0.0127515,93003.0,93002.0,0.0673215]
[1765323758470,0.002,93003.0,93002.0,0.0673215]
[1765323758857,0.003,93003.0,93002.0,0.0673215]
[1765323761567,0.0137514,93003.0,93002.0,0.0673215]
[1765323762971,0.003,93003.0,93002.0,0.0673215]
[1765323765368,0.0107507,93010.0,93009.0,0.0673207]
[1765323766465,0.0127507,93010.0,93009.0,0.0673207]
[1765323766666,0.0157507,93010.0,93009.0,0.0673207]
[1765323769471,0.005,93010.0,93009.0,0.07824837]
[1765323770577,0.06249,93010.0,93009.0,0.07824837]
[1765323773869,0.06249,93010.0,93009.0,0.11680459]
[1765323774682,0.06249,93010.0,93009.0,0.07824837]
[1765323775277,0.005,93010.0,93009.0,0.11680459]
[1765323775485,0.005,93010.0,93009.0,0.07824837]
[1765323775678,0.06339,93010.0,93009.0,0.0673207]
[1765323776072,0.06339,93010.0,93009.0,0.05657]
[1765323780375,0.05839,93006.0,93005.0,0.03861667]
[1765323780574,0.05839,93006.0,93005.0,0.05833]
[1765323781472,0.05939,93006.0,93005.0,0.05833]
[1765323781688,0.06039,93006.0,93005.0,0.05833]
[1765323786622,0.0661817,93001.0,93000.0,0.03877793]
[1765323786886,0.0661817,93001.0,93000.0,0.00016126]
[1765323787789,0.0671817,93001.0,93000.0,0.00016126]
[1765323791791,0.0671817,93001.0,93000.0,0.07375126]
[1765323797598,0.0671817,93001.0,93000.0,0.00016126]
[1765323797901,0.0671817,93001.0,93000.0,0.05678126]
[1765323799788,0.0671817,93001.0,93000.0,0.07375126]
[1765323808912,0.05888219,93015.0,93000.0,0.07375126]
[1765323808913,0.0010751,93015.0,93014.0,0.0673402]
[1765323811097,0.0030751,93015.0,93014.0,0.0673402]
[1765323811306,0.0030751,93015.0,93014.0,0.10593084]
[1765323811699,0.0010751,93015.0,93014.0,0.10593084]
[1765323812105,0.0295951,93015.0,93014.0,0.10593084]
[1765323812306,0.0295951,93015.0,93014.0,0.0673402]
[1765323813012,0.0010751,93015.0,93014.0,0.0673402]
[1765323813307,0.0580351,93015.0,93014.0,0.0673402]
[1765323815097,0.0295951,93015.0,93014.0,0.0673402]
[1765323819505,0.0677105,93011.0,93010.0,0.03859064]
[1765323819706,0.05696,93009.0,93008.0,0.02765]
[1765323819902,0.05696,93006.0,93005.0,0.05659]
[1765323821107,0.05696,93006.0,93005.0,0.05859]
[1765323821611,0.05696,93006.0,93005.0,0.05959]
[1765323826213,0.0677111,93006.0,93005.0,0.05959]
[1765323829315,0.0010751,93015.0,93005.0,0.05959]
[1765323829316,0.067711,93007.0,93006.0,0.05659]
[1765323830613,0.067711,93007.0,93006.0,0.05959]
[1765323831417,0.05696,93007.0,93006.0,0.05959]
[1765323832516,0.067711,93007.0,93006.0,0.05959]
[1765323839217,0.067711,93007.0,93006.0,0.003]
[1765323841728,0.0692617,93001.0,93000.0,0.00016126]
[1765323843037,0.0692617,93001.0,93000.0,0.00116126]
[1765323844932,0.0692617,93001.0,93000.0,0.02910126]
[1765323846933,0.0692617,93001.0,93000.0,0.00116126]
[1765323852533,0.0692617,93001.0,93000.0,0.02928126]
[1765323855154,0.0692617,93001.0,93000.0,0.00116126]
[1765323856254,0.0692617,93001.0,93000.0,0.07533126]
[1765323885386,0.0396417,93001.0,93000.0,0.07533126]
[1765323885584,0.0107517,93001.0,93000.0,0.07533126]
[1765323885786,0.0396317,93001.0,93000.0,0.07533126]
[1765323885986,0.0667017,93001.0,93000.0,0.07533126]
[1765323888584,0.0667017,93001.0,93000.0,0.11394303]
[1765323892395,0.0667017,93001.0,93000.0,0.07533126]
[1765323893898,0.0396317,93001.0,93000.0,0.07533126]
[1765323894589,0.0666517,93001.0,93000.0,0.07533126]
[1765323900498,0.0666517,93001.0,93000.0,0.11396723]
[1765323900706,0.0666517,93001.0,93000.0,0.00116126]
[1765323903105,0.0666517,93001.0,92980.0,0.03863597]
[1765323903106,0.0789632,92988.0,92980.0,0.03863597]
[1765323903406,0.0668843,92978.0,92977.0,0.0557]
[1765323905299,0.0668843,92978.0,92977.0,0.0607]
[1765323906206,0.0668843,92978.0,92977.0,0.0637]
[1765323907602,0.0107537,92984.0,92977.0,0.0187543]
[1765323907799,0.0382637,92983.0,92982.0,0.05773]
[1765323908203,0.0657637,92983.0,92982.0,0.05773]
[1765323909394,0.0657637,92983.0,92982.0,0.06173]
[1765323909624,0.0657637,92983.0,92982.0,0.06373]
[1765323910501,0.0657637,92983.0,92982.0,0.006]
[1765323911399,0.0657637,92983.0,92982.0,0.03392]
[1765323911911,0.0657637,92983.0,92982.0,0.006]
[1765323919012,0.00016126,92987.0,92968.0,0.00016126]
[1765323919013,0.0657654,92969.0,92968.0,0.00016126]
[1765323919308,0.0657654,92969.0,92968.0,0.05789126]
[1765323919495,0.0657654,92969.0,92968.0,0.07436126]
[1765323920702,0.0657654,92969.0,92968.0,0.07836126]
[1765323920901,0.0657654,92969.0,92968.0,0.08436126]
[1765323922913,0.0657654,92969.0,92968.0,0.01016126]
[1765323923604,0.0107577,92949.0,92948.0,0.01647]
[1765323923908,0.0662877,92949.0,92948.0,0.07427]
[1765323924912,0.0662877,92949.0,92948.0,0.09027]
[1765323942432,0.0107577,92949.0,92948.0,0.1010278]
[1765323942738,0.0107577,92949.0,92948.0,0.09027]
[1765323948538,0.0662877,92949.0,92948.0,0.09027]
[1765323951239,0.0662877,92949.0,92948.0,0.12890597]
[1765323952246,0.0662877,92949.0,92948.0,0.09027]
[1765323952640,0.0662877,92949.0,92948.0,0.0738]
[1765323954845,0.0662877,92949.0,92948.0,0.11240123]
[1765323955146,0.0662877,92949.0,92948.0,0.12886123]
[1765323955345,0.0662877,92949.0,92948.0,0.04439]
[1765323955548,0.0662877,92949.0,92948.0,0.07246]
[1765323956247,0.0662877,92949.0,92948.0,0.12752123]
[1765323957245,0.0662877,92949.0,92948.0,0.08892]
[1765323960244,0.0662877,92949.0,92948.0,0.04439]
[1765323960445,0.0662877,92949.0,92948.0,0.016]
[1765323965348,0.0662877,92949.0,92940.0,0.00107597]
[1765323965349,0.0654186,92941.0,92940.0,0.00107597]
[1765323966343,0.0654186,92941.0,92940.0,0.00807597]
[1765323967959,0.0654186,92941.0,92940.0,0.04305597]
[1765323970566,0.0654186,92941.0,92940.0,0.01307597]
[1765323971855,0.0654186,92941.0,92940.0,0.07268597]
[1765323973052,0.0654186,92941.0,92940.0,0.09052597]
[1765323976964,0.2654186,92941.0,92940.0,0.09052597]
[1765323977161,0.2654186,92941.0,92940.0,0.01307597]
[1765323981168,0.7644586,92941.0,92940.0,0.01307597]
[1765323981366,0.7644586,92941.0,92940.0,0.07268597]
[1765323981958,0.7644586,92941.0,92940.0,0.04305597]
[1765323984475,0.7644586,92941.0,92940.0,0.01307597]
[1765323989561,0.7644586,92941.0,92939.0,0.00016135]
[1765323989762,0.0673303,92926.0,92925.0,0.07562]
[1765323990776,0.0673307,92923.0,92922.0,0.04594]
[1765323990968,0.5663707,92923.0,92922.0,0.07557]
[1765323991576,0.0673314,92917.0,92916.0,0.07573135]
[1765323993376,0.0783314,92917.0,92916.0,0.07673135]
[1765323993970,0.0823314,92917.0,92916.0,0.07773135]
[1765324004119,0.0257614,92917.0,92916.0,0.07773135]
[1765324004788,0.0544114,92917.0,92916.0,0.07773135]
[1765324004987,0.0823314,92917.0,92916.0,0.07773135]
[1765324017202,0.0823314,92917.0,92916.0,0.00216135]
[1765324019392,0.0823314,92917.0,92916.0,0.03173135]
[1765324020998,0.0823314,92917.0,92916.0,0.06103135]
[1765324021899,0.0823314,92917.0,92916.0,0.00216135]
[1765324022191,0.0823314,92917.0,92916.0,0.06103135]
[1765324027902,0.0823314,92917.0,92916.0,0.07852135]
[1765324046714,0.015,92917.0,92916.0,0.07852135]
[1765324046910,0.0107604,92926.0,92925.0,0.01637]
[1765324047133,0.07729079,92937.0,92925.0,0.01637]
[1765324047134,0.0107599,92930.0,92928.0,0.01637]
[1765324047311,0.01092065,92935.0,92934.0,0.07481]
[1765324047513,0.03845065,92935.0,92934.0,0.07481]
[1765324047713,0.06843065,92935.0,92934.0,0.07481]
[1765324048726,0.00016135,92935.0,92934.0,0.07481]
[1765324049335,0.00416135,92935.0,92934.0,0.07481]
[1765324050035,0.00016135,92935.0,92934.0,0.07481]
[1765324050330,0.0107584,92943.0,92940.0,0.07481]
[1765324050835,0.0107584,92943.0,92940.0,0.08581908]
[1765324051226,0.0107583,92944.0,92940.0,0.08581908]
[1765324051424,0.0107585,92942.0,92940.0,0.08581908]
[1765324052133,0.201,92941.0,92940.0,0.08581908]
[1765324052524,0.201,92941.0,92940.0,0.08681908]
[1765324052925,0.22853,92941.0,92940.0,0.08681908]
[1765324053429,0.25851,92941.0,92940.0,0.07581]
[1765324057736,0.25851,92941.0,92940.0,0.001]
[1765324059030,0.25851,92941.0,92940.0,0.03063]
[1765324060341,0.25851,92941.0,92940.0,0.07581]
[1765324061830,0.201,92941.0,92940.0,0.07581]
[1765324062440,0.22853,92941.0,92940.0,0.07581]
[1765324062640,0.25851,92941.0,92940.0,0.07581]
[1765324065244,0.25851,92941.0,92940.0,0.001]
[1765324067742,0.75763,92941.0,92940.0,0.05944]
[1765324067945,0.75763,92941.0,92940.0,0.001]
[1765324072844,0.7683886,92941.0,92940.0,0.001]
[1765324074143,0.2692686,92941.0,92940.0,0.05802]
[1765324074454,0.7684286,92941.0,92940.0,0.05802]
[1765324077566,0.7684286,92941.0,92940.0,0.07556]
[1765324078446,0.7684286,92941.0,92940.0,0.05802]
[1765324080047,0.2692686,92941.0,92940.0,0.07556]
[1765324080253,0.7684286,92941.0,92940.0,0.07556]
[1765324080856,0.2692686,92941.0,92940.0,0.07556]
[1765324081057,0.7573486,92941.0,92940.0,0.07556]
[1765324082867,0.2692686,92941.0,92940.0,0.07556]
[1765324083162,0.7533486,92941.0,92940.0,0.07556]
[1765324087066,0.7533486,92941.0,92940.0,0.05802]
[1765324087463,0.7533486,92941.0,92940.0,0.03063]
[1765324087695,0.7533486,92941.0,92940.0,0.001]
[1765324089370,0.7533486,92941.0,92940.0,0.0299]
[1765324090574,0.7533486,92941.0,92940.0,0.05892]
[1765324091675,0.7533486,92941.0,92940.0,0.0299]
[1765324092078,0.7533486,92941.0,92940.0,0.001]
[1765324092278,0.7533486,92941.0,92940.0,0.0299]
[1765324092773,0.7533486,92941.0,92940.0,0.001]
[1765324092982,0.7533486,92941.0,92940.0,0.0299]
[1765324093570,0.2692686,92941.0,92940.0,0.0299]
[1765324093771,0.7684286,92941.0,92940.0,0.05892]
[1765324094379,0.7684286,92941.0,92940.0,0.001]
[1765324094875,0.0700102,92927.0,92923.0,0.03860123]
[1765324095082,0.0700106,92924.0,92923.0,0.0289]
[1765324095281,0.0700106,92924.0,92923.0,0.05792]
[1765324095778,0.0700109,92921.0,92920.0,0.09652123]
[1765324095982,0.0700109,92921.0,92920.0,0.11324123]
[1765324097771,0.0700109,92921.0,92920.0,0.11724123]
[1765324098181,0.0700109,92921.0,92920.0,0.12224123]
[1765324098967,0.05925,92921.0,92920.0,0.12224123]
[1765324099784,0.05925,92924.0,92920.0,0.06432123]
[1765324100077,0.02966,92928.0,92927.0,0.05792]
[1765324100266,0.00016144,92930.0,92929.0,0.05792]
[1765324100471,0.05941144,92930.0,92929.0,0.05792]
[1765324101782,0.05941144,92930.0,92929.0,0.06092]
[1765324102985,0.00016144,92930.0,92929.0,0.06392]
[1765324109479,0.00016144,92930.0,92929.0,0.12183766]
[1765324111381,0.06952134,92930.0,92929.0,0.13259766]
[1765324111685,0.01092134,92930.0,92929.0,0.13259766]
[1765324113190,0.01092134,92930.0,92929.0,0.07468]
[1765324113384,0.03972134,92930.0,92929.0,0.07468]
[1765324113689,0.03972134,92930.0,92929.0,0.06392]
[1765324113886,0.06952134,92930.0,92929.0,0.06392]
[1765324114492,0.06952134,92930.0,92929.0,0.10249959]
[1765324118096,0.06952134,92930.0,92929.0,0.06392]
[1765324118591,0.05876144,92930.0,92929.0,0.07468]
[1765324118799,0.00016144,92930.0,92929.0,0.07468]
[1765324119095,0.00016144,92930.0,92929.0,0.11325959]
[1765324119486,0.02896144,92930.0,92929.0,0.11325959]
[1765324120798,0.00016144,92930.0,92929.0,0.11325959]
[1765324121391,0.02896144,92930.0,92929.0,0.11325959]
[1765324122186,0.00016144,92930.0,92929.0,0.11325959]
[1765324122388,0.00016144,92930.0,92929.0,0.07468]
[1765324124702,0.06952134,92930.0,92929.0,0.06392]
[1765324124997,0.06952134,92930.0,92929.0,0.006]
[1765324125388,0.06952134,92930.0,92929.0,0.03371]
[1765324125995,0.06952134,92930.0,92929.0,0.006]
[1765324126600,0.06952134,92930.0,92929.0,0.03371]
[1765324127196,0.06952134,92930.0,92929.0,0.0609]
[1765324127597,0.06952134,92930.0,92929.0,0.03371]
[1765324127898,0.06952134,92930.0,92929.0,0.0609]
[1765324130190,0.06952134,92930.0,92929.0,0.006]
[1765324130794,0.06952134,92930.0,92929.0,0.03371]
[1765324131187,0.06952134,92930.0,92929.0,0.0609]
[1765324135300,0.06952134,92930.0,92929.0,0.006]
[1765324135594,0.06952134,92930.0,92929.0,0.06465]
[1765324136798,0.06952134,92930.0,92929.0,0.03541]
[1765324136995,0.08276134,92930.0,92929.0,0.006]
[1765324141204,0.06952134,92930.0,92929.0,0.06465]
[1765324143498,0.06952134,92930.0,92929.0,0.006]
[1765324143904,0.08276134,92930.0,92929.0,0.006]
[1765324150202,0.0662914,92917.0,92916.0,0.00016135]
[1765324151411,0.0662914,92917.0,92916.0,0.00616135]
[1765324152006,0.0662914,92917.0,92916.0,0.01016135]
[1765324155615,0.0662914,92917.0,92916.0,0.01016135]
[1765324162618,0.011,92920.0,92900.0,0.0176]
[1765324162619,0.0674832,92901.0,92900.0,0.05757]
[1765324163122,0.0674832,92901.0,92900.0,0.0746]
[1765324163512,0.06757588,92901.0,92900.0,0.0746]
[1765324163916,0.06957588,92901.0,92900.0,0.0746]
[1765324165115,0.07657588,92901.0,92900.0,0.0756]
[1765324167523,0.07657588,92901.0,92900.0,0.05857]
[1765324168224,0.07657588,92901.0,92900.0,0.0756]
[1765324170941,0.07657588,92901.0,92900.0,0.05857]
[1765324171740,0.07657588,92901.0,92900.0,0.0756]
[1765324173448,0.07657588,92901.0,92900.0,0.05857]
[1765324173844,0.07657588,92901.0,92900.0,0.0756]
[1765324174142,0.07657588,92901.0,92900.0,0.05857]
[1765324174738,0.07657588,92901.0,92900.0,0.02866]
[1765324175442,0.07657588,92901.0,92900.0,0.05771]
[1765324176534,0.07657588,92901.0,92900.0,0.001]
[1765324177143,0.0692738,92896.0,92895.0,0.02839]
[1765324177744,0.0692738,92896.0,92895.0,0.05744]
[1765324178649,0.0692738,92896.0,92895.0,0.05844]
[1765324178650,0.0762738,92896.0,92895.0,0.05844]
[1765324179341,0.0782738,92896.0,92895.0,0.05844]
[1765324193050,0.0782738,92896.0,92891.0,0.00016144]
[1765324193051,0.0671343,92892.0,92891.0,0.00016144]
[1765324193958,0.0671343,92892.0,92891.0,0.02825144]
[1765324194352,0.0681343,92892.0,92891.0,0.05554144]
[1765324194550,0.0751343,92892.0,92891.0,0.05654144]
[1765324195554,0.0751343,92892.0,92891.0,0.00116144]
[1765324200560,0.0751343,92892.0,92891.0,0.05654144]
[1765324203057,0.0751343,92892.0,92891.0,0.00116144]
[1765324203562,0.0751343,92892.0,92891.0,0.02925144]
[1765324204060,0.5745343,92892.0,92891.0,0.05654144]
[1765324207362,0.5745343,92892.0,92891.0,0.05913144]
[1765324207758,0.5877743,92892.0,92891.0,0.00116144]
[1765324207964,0.0883743,92892.0,92891.0,0.00116144]
[1765324208170,0.5877343,92892.0,92891.0,0.00116144]
[1765324209066,0.0668456,92881.0,92880.0,0.075]
[1765324209263,0.06693828,92881.0,92880.0,0.075]
[1765324209759,0.066846,92877.0,92876.0,0.05797]
[1765324210366,0.066846,92877.0,92876.0,0.07515]
[1765324211258,0.069846,92877.0,92876.0,0.07615]
[1765324211458,0.069846,92877.0,92876.0,0.07815]
[1765324211856,0.069846,92877.0,92876.0,0.06097]
[1765324212056,0.069846,92877.0,92876.0,0.003]
[1765324217363,0.069846,92877.0,92876.0,0.07815]
[1765324218270,0.069846,92877.0,92876.0,0.06097]
[1765324218662,0.069846,92877.0,92876.0,0.0316]
[1765324219672,0.069846,92877.0,92876.0,0.003]
[1765324219855,0.069846,92877.0,92876.0,0.07815]
[1765324220272,0.069846,92877.0,92876.0,0.06097]
[1765324223678,0.069846,92877.0,92876.0,0.0316]
[1765324224267,0.069846,92877.0,92876.0,0.003]
[1765324228478,0.069846,92877.0,92867.0,0.00016144]
[1765324228479,0.0682471,92868.0,92867.0,0.00016144]
[1765324228674,0.56777978,92868.0,92867.0,0.00016144]
[1765324228979,0.53113978,92868.0,92867.0,0.05817144]
[1765324229564,0.53113978,92868.0,92867.0,0.06117144]
[1765324229769,0.53213978,92868.0,92867.0,0.06117144]
[1765324236275,0.00109268,92868.0,92867.0,0.06117144]
[1765324236474,0.05857268,92868.0,92867.0,0.00316144]
[1765324236677,0.05857268,92868.0,92867.0,0.03273144]
[1765324236881,0.05857268,92868.0,92867.0,0.06117144]
[1765324238170,0.05857268,92868.0,92867.0,0.03273144]
[1765324238373,0.05857268,92868.0,92867.0,0.00316144]
[1765324238987,0.05857268,92868.0,92867.0,0.03273144]
[1765324241883,0.05857268,92868.0,92867.0,0.06117144]
[1765324242981,0.05857268,92868.0,92867.0,0.03273144]
[1765324243292,0.07195268,92868.0,92867.0,0.00316144]
[1765324244283,0.07195268,92868.0,92867.0,0.00016144]
[1765324244483,0.07195268,92868.0,92867.0,0.00116144]
[1765324245690,0.07495268,92868.0,92867.0,0.00216144]
[1765324246583,0.57443268,92868.0,92867.0,0.00216144]
[1765324248890,0.0682488,92853.0,92852.0,0.05801]
[1765324249089,0.56782148,92853.0,92852.0,0.05801]
[1765324249979,0.56782148,92853.0,92852.0,0.06101]
[1765324250384,0.56782148,92853.0,92852.0,0.07845]
[1765324251381,0.56882148,92853.0,92852.0,0.07945]
[1765324252180,0.56882148,92853.0,92852.0,0.06201]
[1765324252376,0.56882148,92853.0,92852.0,0.004]
[1765324252576,0.56882148,92853.0,92852.0,0.07945]
[1765324253385,0.01186148,92853.0,92852.0,0.07945]
[1765324253590,0.54005148,92853.0,92852.0,0.07945]
[1765324253795,0.56984148,92853.0,92852.0,0.07945]
[1765324258195,0.07036148,92853.0,92852.0,0.07945]
[1765324258404,0.53484148,92853.0,92852.0,0.07945]
[1765324260300,0.53484148,92853.0,92852.0,0.06201]
[1765324260605,0.53484148,92853.0,92852.0,0.004]
[1765324261998,0.07036148,92853.0,92852.0,0.07805]
[1765324262206,0.56988148,92853.0,92852.0,0.07805]
[1765324263805,0.07036148,92853.0,92852.0,0.07805]
[1765324264010,0.53084148,92853.0,92852.0,0.07805]
[1765324267603,0.07036148,92853.0,92852.0,0.07805]
[1765324267803,0.54044148,92853.0,92852.0,0.07805]
[1765324269101,0.07036148,92853.0,92852.0,0.07805]
[1765324269302,0.03085268,92853.0,92852.0,0.07805]
[1765324269607,0.05935268,92853.0,92852.0,0.07805]
[1765324270911,0.0238098,92844.0,92843.0,0.00016153]
[1765324271106,0.05826,92823.0,92822.0,0.028]
[1765324271308,0.0690327,92819.0,92818.0,0.05562]
[1765324271811,0.0690331,92816.0,92801.0,0.05791766]
[1765324272003,0.0690331,92816.0,92800.0,0.01626]
[1765324272310,0.06916029,92816.0,92815.0,0.02907742]
[1765324273712,0.07716029,92816.0,92815.0,0.03007742]
[1765324274301,0.07716029,92816.0,92815.0,0.00207742]
[1765324274507,0.07916029,92816.0,92815.0,0.00207742]
[1765324274810,0.07916029,92816.0,92815.0,0.03007742]
[1765324275000,0.0107741,92807.0,92806.0,0.00010768]
[1765324275202,0.0690341,92807.0,92806.0,0.00010768]
[1765324275713,0.06916721,92807.0,92806.0,0.00010768]
[1765324276010,0.0690358,92793.0,92792.0,0.07188]
[1765324277114,0.0690358,92793.0,92792.0,0.05862]
[1765324277314,0.0701353,92793.0,92792.0,0.004]
[1765324279214,0.05826,92791.0,92790.0,0.05669771]
[1765324279413,0.05826,92791.0,92790.0,0.07295771]
[1765324279715,0.55838,92791.0,92790.0,0.07295771]
[1765324280515,0.55838,92791.0,92790.0,0.07395771]
[1765324280516,0.06126,92791.0,92790.0,0.07395771]
[1765324280717,0.35546,92791.0,92790.0,0.07395771]
[1765324280916,0.35546,92791.0,92790.0,0.07595771]
[1765324281306,0.06126,92791.0,92790.0,0.07595771]
[1765324281605,0.003,92791.0,92790.0,0.07595771]
[1765324282600,0.03276,92791.0,92790.0,0.07595771]
[1765324283113,0.06126,92791.0,92790.0,0.07595771]
[1765324286016,0.03276,92791.0,92790.0,0.07595771]
[1765324287713,0.03279,92791.0,92790.0,0.07595771]
[1765324287916,0.06254,92791.0,92790.0,0.07595771]
[1765324288813,0.03279,92791.0,92790.0,0.07595771]
[1765324289117,0.003,92791.0,92790.0,0.07595771]
[1765324290420,0.06254,92791.0,92790.0,0.07595771]
[1765324293019,0.03279,92791.0,92790.0,0.07595771]
[1765324293609,0.06254,92791.0,92790.0,0.07595771]
[1765324297822,0.03279,92791.0,92790.0,0.07595771]
[1765324298220,0.06254,92791.0,92790.0,0.07595771]
[1765324299127,0.03279,92791.0,92790.0,0.07595771]
[1765324299326,0.05552144,92791.0,92790.0,0.07595771]
[1765324301023,0.08527144,92791.0,92790.0,0.07595771]
[1765324301528,0.02573144,92791.0,92790.0,0.07595771]
[1765324302318,0.03650744,92791.0,92790.0,0.07595771]
[1765324302820,0.02573144,92791.0,92790.0,0.07595771]
[1765324303023,0.00016162,92802.0,92801.0,0.05489]
[1765324303715,0.11764082,92821.0,92820.0,0.07123]
[1765324303918,0.0107725,92821.0,92820.0,0.07123]
[1765324304124,0.01084777,92821.0,92820.0,0.07123]
[1765324304830,0.04063777,92821.0,92820.0,0.07123]
[1765324305127,0.07338777,92821.0,92820.0,0.05489]
[1765324305330,0.0703136,92812.0,92811.0,0.05505162]
[1765324307432,0.0723136,92812.0,92811.0,0.05505162]
[1765324308430,0.0793136,92812.0,92811.0,0.05605162]
[1765324315137,0.10196032,92812.0,92811.0,0.05605162]
[1765324318836,0.03164672,92812.0,92811.0,0.05605162]
[1765324319023,0.08949672,92812.0,92811.0,0.05605162]
[1765324320930,0.08849672,92812.0,92811.0,0.05605162]
[1765324322030,0.08949672,92812.0,92811.0,0.05605162]
[1765324326338,0.06105672,92812.0,92811.0,0.05605162]
[1765324326841,0.03841,92812.0,92811.0,0.05605162]
[1765324327242,0.06102107,92812.0,92811.0,0.05605162]
[1765324328134,0.03161107,92812.0,92811.0,0.05605162]
[1765324328342,0.009,92812.0,92811.0,0.05605162]
[1765324331044,0.00016162,92830.0,92829.0,0.05791]
[1765324331538,0.02277587,92830.0,92829.0,0.05791]
[1765324331740,0.00016162,92830.0,92829.0,0.05791]
[1765324331944,0.0107706,92838.0,92837.0,0.05791]
[1765324332144,0.0107706,92838.0,92837.0,0.0686807]
[1765324333635,0.0167706,92838.0,92837.0,0.0696807]
[1765324334530,0.0197706,92838.0,92837.0,0.0696807]
[1765324335234,0.009,92838.0,92837.0,0.0696807]
[1765324335645,0.009,92838.0,92837.0,0.08068278]
[1765324337142,0.009,92838.0,92837.0,0.0696807]
[1765324338043,0.06514,92838.0,92837.0,0.05891]
[1765324338546,0.009,92838.0,92837.0,0.05891]
[1765324341148,0.06514,92838.0,92837.0,0.05891]
[1765324345053,0.0387,92838.0,92837.0,0.05891]
[1765324345354,0.06578,92838.0,92837.0,0.05891]
[1765324347558,0.06578,92838.0,92837.0,0.0696807]
[1765324348661,0.009,92838.0,92837.0,0.0696807]
[1765324355663,0.0197705,92838.0,92837.0,0.0696807]
[1765324355866,0.0765505,92838.0,92837.0,0.0696807]
[1765324356552,0.0494705,92838.0,92837.0,0.0696807]
[1765324357660,0.0765505,92838.0,92837.0,0.001]
[1765324357964,0.0765505,92838.0,92825.0,0.05791766]
[1765324357965,0.06612,92826.0,92825.0,0.05791766]
[1765324358162,0.0852926,92820.0,92819.0,0.05745]
[1765324358864,0.09020554,92820.0,92819.0,0.05745]
[1765324359056,0.0675526,92820.0,92819.0,0.05745]
[1765324359366,0.0675526,92820.0,92819.0,0.05845]
[1765324359555,0.0685526,92820.0,92819.0,0.05845]
[1765324360959,0.0695526,92820.0,92819.0,0.05845]
[1765324361164,0.09220702,92820.0,92819.0,0.05845]
[1765324361361,0.0872926,92820.0,92819.0,0.05845]
[1765324361667,0.0872926,92820.0,92819.0,0.001]
[1765324362167,0.0872926,92820.0,92819.0,0.05845]
[1765324362566,0.0872926,92820.0,92819.0,0.0294]
[1765324363653,0.0872926,92820.0,92819.0,0.001]
[1765324364059,0.10993177,92820.0,92819.0,0.001]
[1765324364260,0.0675536,92812.0,92802.0,0.05791766]
[1765324364459,0.0675536,92812.0,92798.0,0.05791766]
[1765324364666,0.0675536,92812.0,92797.0,0.05791766]
[1765324364967,0.0675536,92812.0,92792.0,0.0682258]
[1765324364968,0.05678,92793.0,92792.0,0.0682258]
[1765324365171,0.05678,92793.0,92792.0,0.05745]
[1765324366067,0.05778,92793.0,92792.0,0.06545]
[1765324366370,0.05778,92793.0,92792.0,0.06745]
[1765324367464,0.05678,92793.0,92792.0,0.05945]
[1765324367769,0.05778,92793.0,92792.0,0.06445]
[1765324368765,0.0307,92793.0,92792.0,0.06445]
[1765324368960,0.001,92793.0,92792.0,0.06445]
[1765324373668,0.02889,92793.0,92792.0,0.06445]
[1765324373867,0.05599,92793.0,92792.0,0.06445]
[1765324374687,0.001,92793.0,92792.0,0.06445]
[1765324374877,0.02889,92793.0,92792.0,0.06445]
[1765324377680,0.05599,92793.0,92792.0,0.06445]
[1765324379182,0.0667658,92793.0,92792.0,0.06445]
[1765324379776,0.0396658,92793.0,92792.0,0.06445]
[1765324380883,0.0117758,92793.0,92792.0,0.06445]
[1765324381080,0.0667658,92793.0,92792.0,0.06445]
[1765324390793,0.0117758,92793.0,92792.0,0.06445]
[1765324391086,0.0709458,92793.0,92792.0,0.06445]
[1765324402094,0.09357938,92793.0,92792.0,0.06445]
[1765324403896,0.0670868,92784.0,92783.0,0.05807928]
[1765324404088,0.08972142,92784.0,92783.0,0.00016162]
[1765324404293,0.0670877,92776.0,92775.0,0.05629]
[1765324405803,0.0680877,92776.0,92775.0,0.06529]
[1765324406105,0.0690877,92776.0,92775.0,0.06929]
[1765324407204,0.0690877,92776.0,92775.0,0.0800679]
[1765324407392,0.0690877,92776.0,92775.0,0.0971879]
[1765324407596,0.0690877,92776.0,92775.0,0.08641]
[1765324408194,0.0690877,92776.0,92775.0,0.06929]
[1765324416609,0.0690877,92776.0,92775.0,0.08273]
[1765324416816,0.0404877,92776.0,92775.0,0.08273]
[1765324417916,0.0690877,92776.0,92775.0,0.08273]
[1765324419817,0.0404877,92776.0,92775.0,0.08273]
[1765324420018,0.0127777,92776.0,92775.0,0.08273]
[1765324420314,0.0404877,92776.0,92775.0,0.08273]
[1765324420510,0.0690877,92776.0,92775.0,0.08273]
[1765324422626,0.0404877,92776.0,92775.0,0.08273]
[1765324423119,0.0690877,92776.0,92775.0,0.08273]
[1765324428013,0.002,92776.0,92775.0,0.08273]
[1765324429614,0.05831,92776.0,92775.0,0.08273]
[1765324433118,0.002,92776.0,92775.0,0.08273]
[1765324434314,0.06121,92776.0,92775.0,0.08273]
[1765324435915,0.002,92776.0,92775.0,0.08273]
[1765324439325,0.0127777,92776.0,92775.0,0.08273]
[1765324439527,0.0719877,92776.0,92775.0,0.06929]
[1765324441622,0.09461477,92776.0,92775.0,0.013]
[1765324445131,0.0719877,92776.0,92775.0,0.013]
[1765324445333,0.0719877,92776.0,92768.0,0.03874216]
[1765324445334,0.0107794,92762.0,92758.0,2.16e-06]
[1765324445535,0.0107785,92769.0,92740.0,0.01762829]
[1765324445536,0.0107806,92751.0,92748.0,0.05832428]
[1765324445842,0.05921,92749.0,92748.0,0.08813428]
[1765324446333,0.05921,92749.0,92748.0,0.05784542]